[Event "1st SOA-GM Festival 2024"]
[Site "Bhubaneswar"]
[Date "2024.02.03"]
[Round "9.4"]
[White "Liyanage, Ranindu Dilshan"]
[Black "Fawzy, Adham"]
[Result "1/2-1/2"]
[ECO "B30"]
[WhiteElo "2366"]
[BlackElo "2522"]
[Annotator "RC"]
[PlyCount "71"]
[EventDate "2024.02.01"]
[EventType "swiss"]
[EventCountry "IND"]
[SourceTitle "playchess.com"]
[Source "ChessBase"]
[SourceQuality "1"]
[TimeControl "5400+30"]

1. e4 {[%emt 0:00:23]} c5 {[%emt 0:00:42]} 2. Nf3 {[%emt 0:00:31]} Nc6 {[%emt 0:00:39]} 3. Nc3 {[%emt 0:00:20]} Nf6 {[%emt 0:05:39]} 4. Bb5 {[%emt 0:01:58]} d6 {[%emt 0:02:03]} 5. e5 {[%emt 0:07:07]} dxe5 {[%emt 0:05:14]} 6. Nxe5 {[%emt 0:00:50]} Qc7 {[%emt 0:01:10]} 7. Bxc6+ {[%emt 0:11:41]} bxc6 {[%emt 0:00:27]} 8. Qe2 {[%emt 0:00:39]} Bf5 {[%emt 0:03:14]} 9. d3 {[%emt 0:10:51]} e6 {[%emt 0:13:12]} 10. Bf4 {[%emt 0:04:13]} Bd6 {[%emt 0:05:16]} 11. Bg3 {[%emt 0:01:35]} O-O {[%emt 0:06:37]} 12. Nc4 {[%emt 0:02:12]} Bf4 {[%emt 0:05:31]} 13. O-O {[%emt 0:05:14]} Bxg3 {[%emt 0:05:49]} 14. hxg3 {[%emt 0:00:58]} Nd7 {[%emt 0:00:36]} 15. Qe3 {[%emt 0:05:50]} Rab8 {[%emt 0:01:12]} 16. b3 {[%emt 0:01:12]} e5 {[%emt 0:05:34]} 17. Ne4 {[%emt 0:04:26]} f6 {[%emt 0:06:09]} 18. Nxc5 {[%emt 0:02:41]} Rbe8 {[%emt 0:02:04]} 19. Na6 {[%emt 0:05:14]} Qb7 {[%emt 0:01:18]} 20. Nc5 {[%emt 0:01:28]} Qc7 {[%emt 0:00:22]} 21. Na6 {[%emt 0:00:18]} Qb7 {[%emt 0:00:06]} 22. Nd6 {[%emt 0:00:07]} Qxa6 {[%emt 0:00:07]} 23. Nxf5 {[%emt 0:00:07]} g6 {[%emt 0:02:00]} 24. Nd6 {[%emt 0:00:28]} Re6 {[%emt 0:00:23]} 25. Nc4 {[%emt 0:00:14]} f5 {[%emt 0:00:31]} 26. Rfe1 {[%emt 0:01:38]} Rfe8 {[%emt 0:00:23]} 27. a4 {[%emt 0:02:07]} Qb7 {[%emt 0:00:48]} 28. Re2 {[%emt 0:03:41]} Nf6 {[%emt 0:27:24]} 29. Rae1 {[%emt 0:01:43]} Qg7 {[%emt 0:00:00]} 30. Qc1 {[%emt 0:05:33]} e4 {[%emt 0:00:00]} 31. dxe4 {[%emt 0:05:45]} fxe4 {[%emt 0:00:00]} 32. Nd2 {[%emt 0:02:52]} Re5 {[%emt 0:00:00]} 33. Nf3 {[%emt 0:13:04]} R5e7 {[%emt 0:00:00]} 34. Nd2 {[%emt 0:00:00]} Re5 {[%emt 0:00:00]} 35. Nf3 {[%emt 0:00:00]} R5e7 {[%emt 0:00:00]} 36. Nd2 {[%emt 0:00:00]} 1/2-1/2

[Event "1st SOA-GM Festival 2024"]
[Site "Bhubaneswar"]
[Date "2024.02.03"]
[Round "9.5"]
[White "Ayush Sharma"]
[Black "Neelash Saha"]
[Result "0-1"]
[ECO "B12"]
[WhiteElo "2378"]
[BlackElo "2446"]
[Annotator "RC"]
[PlyCount "74"]
[EventDate "2024.02.01"]
[EventType "swiss"]
[EventCountry "IND"]
[SourceTitle "playchess.com"]
[Source "ChessBase"]
[SourceQuality "1"]
[TimeControl "5400+30"]

1. e4 {[%emt 0:00:04]} c6 {[%emt 0:01:23]} 2. d4 {[%emt 0:00:13]} d5 {[%emt 0:00:04]} 3. e5 {[%emt 0:00:05]} Bf5 {[%emt 0:00:07]} 4. Nf3 {[%emt 0:00:06]} e6 {[%emt 0:00:28]} 5. Be2 {[%emt 0:00:06]} Nd7 {[%emt 0:00:35]} 6. O-O {[%emt 0:00:08]} a5 {[%emt 0:01:11]} 7. a4 {[%emt 0:00:05]} f6 {[%emt 0:05:26]} 8. Re1 {[%emt 0:01:40]} fxe5 {[%emt 0:02:17]} 9. dxe5 {[%emt 0:00:01]} Bc5 {[%emt 0:00:30]} 10. Bd3 {[%emt 0:05:39]} Ne7 {[%emt 0:03:08]} 11. Be3 {[%emt 0:04:18]} Qb6 {[%emt 0:04:34]} 12. Nbd2 {[%emt 0:02:08]} Bxe3 {[%emt 0:00:58]} 13. Rxe3 {[%emt 0:00:06]} Nc5 {[%emt 0:00:30]} 14. Nd4 {[%emt 0:05:20]} Nxd3 {[%emt 0:14:20]} 15. Nxf5 {[%emt 0:00:13]} Nxf5 {[%emt 0:00:03]} 16. Rxd3 {[%emt 0:00:06]} Qxb2 {[%emt 0:00:04]} 17. Nf3 {[%emt 0:00:11]} Qb4 {[%emt 1:03:22]} 18. Rb3 {[%emt 0:00:24]} Qe7 {[%emt 0:00:00]} 19. Rab1 {[%emt 0:00:22]} b5 {[%emt 0:00:00]} 20. axb5 {[%emt 0:00:07]} a4 {[%emt 0:00:00]} 21. Ra1 {[%emt 0:00:26]} O-O {[%emt 0:00:00]} 22. Rbb1 {[%emt 0:00:06]} cxb5 {[%emt 0:00:00]} 23. Rxb5 {[%emt 0:00:04]} Nh4 {[%emt 0:00:00]} 24. Nd4 {[%emt 0:00:45]} Ng6 {[%emt 0:00:00]} 25. g3 {[%emt 0:08:52]} Nxe5 {[%emt 0:00:00]} 26. Qe2 {[%emt 0:01:31]} Qf6 {[%emt 0:00:00]} 27. Re1 {[%emt 0:00:29]} Nf7 {[%emt 0:00:00]} 28. Nxe6 {[%emt 0:00:13]} Rfe8 {[%emt 0:00:00]} 29. c4 {[%emt 0:06:58]} a3 {[%emt 0:00:00]} 30. Rbb1 {[%emt 0:01:32]} d4 {[%emt 0:00:00]} 31. c5 {[%emt 0:06:21]} a2 {[%emt 0:00:00]} 32. Ra1 {[%emt 0:00:27]} d3 {[%emt 0:00:00]} 33. Qe4 {[%emt 0:00:24]} d2 {[%emt 0:00:00]} 34. Red1 {[%emt 0:00:03]} Qxe6 {[%emt 0:00:00]} 35. Qxe6 {[%emt 0:00:05]} Rxe6 {[%emt 0:00:00]} 36. Rxd2 {[%emt 0:00:05]} Rea6 {[%emt 0:00:00]} 37. c6 {[%emt 0:00:02]} Ne5 {[%emt 0:00:00]} 0-1

[Event "1st SOA-GM Festival 2024"]
[Site "Bhubaneswar"]
[Date "2024.02.03"]
[Round "9.6"]
[White "Tahbaz, Arash"]
[Black "Shahil Dey"]
[Result "0-1"]
[ECO "A07"]
[WhiteElo "2425"]
[BlackElo "2363"]
[Annotator "RC"]
[PlyCount "86"]
[EventDate "2024.02.01"]
[EventType "swiss"]
[EventCountry "IND"]
[SourceTitle "playchess.com"]
[Source "ChessBase"]
[SourceQuality "1"]
[TimeControl "5400+30"]

1. Nf3 {[%emt 0:00:16]} d5 {[%emt 0:00:07]} 2. g3 {[%emt 0:00:28]} g6 {[%emt 0:00:08]} 3. c4 {[%emt 0:00:39]} dxc4 {[%emt 0:00:20]} 4. Qa4+ {[%emt 0:00:06]} Nc6 {[%emt 0:00:34]} 5. Bg2 {[%emt 0:01:15]} Bg7 {[%emt 0:00:08]} 6. O-O {[%emt 0:00:38]} e5 {[%emt 0:00:51]} 7. Qxc4 {[%emt 0:00:35]} Nge7 {[%emt 0:00:09]} 8. d3 {[%emt 0:00:50]} O-O {[%emt 0:00:15]} 9. Nc3 {[%emt 0:02:50]} h6 {[%emt 0:03:17]} 10. Bd2 {[%emt 0:03:02]} Be6 {[%emt 0:02:30]} 11. Qa4 {[%emt 0:05:54]} f5 {[%emt 0:04:11]} 12. Rfd1 {[%emt 0:19:02]} Nd4 {[%emt 0:07:05]} 13. Ne1 {[%emt 0:06:43]} Nd5 {[%emt 0:10:02]} 14. e3 {[%emt 0:01:12]} Nb6 {[%emt 0:06:51]} 15. Qa3 {[%emt 0:00:29]} Nc6 {[%emt 0:00:32]} 16. b4 {[%emt 0:02:48]} a6 {[%emt 0:01:37]} 17. Rac1 {[%emt 0:00:47]} Qd7 {[%emt 0:08:09]} 18. Na4 {[%emt 0:01:12]} Nxa4 {[%emt 0:00:06]} 19. Qxa4 {[%emt 0:00:05]} Qf7 {[%emt 0:00:48]} 20. Bxc6 {[%emt 0:06:32]} bxc6 {[%emt 0:00:26]} 21. Qxc6 {[%emt 0:00:15]} Bd7 {[%emt 0:12:28]} 22. Qc4 {[%emt 0:19:58]} Ba4 {[%emt 0:05:52]} 23. Qxf7+ {[%emt 0:00:22]} Rxf7 {[%emt 0:00:06]} 24. Nc2 {[%emt 0:00:14]} Rf6 {[%emt 0:05:31]} 25. d4 {[%emt 0:06:50]} Rc6 {[%emt 0:01:25]} 26. Na3 {[%emt 0:00:23]} Rd6 {[%emt 0:02:50]} 27. Re1 {[%emt 0:01:47]} exd4 {[%emt 0:00:16]} 28. exd4 {[%emt 0:02:37]} Rxd4 {[%emt 0:00:57]} 29. Bc3 {[%emt 0:02:08]} Rd7 {[%emt 0:00:05]} 30. Bxg7 {[%emt 0:00:36]} Kxg7 {[%emt 0:00:05]} 31. Nc4 {[%emt 0:00:02]} Rb8 {[%emt 0:05:34]} 32. a3 {[%emt 0:01:41]} Rbd8 {[%emt 0:11:17]} 33. Re6 {[%emt 0:07:01]} Rd1+ {[%emt 0:01:52]} 34. Rxd1 {[%emt 0:00:01]} Rxd1+ {[%emt 0:01:38]} 35. Kg2 {[%emt 0:00:01]} Bb5 {[%emt 0:01:51]} 36. Ne5 {[%emt 0:00:34]} Rd6 {[%emt 0:00:23]} 37. Re7+ {[%emt 0:06:52]} Kf6 {[%emt 0:00:05]} 38. Nxg6 {[%emt 0:00:10]} Kxg6 {[%emt 0:00:12]} 39. Rxc7 {[%emt 0:00:01]} Rd3 {[%emt 0:00:29]} 40. f3 {[%emt 0:01:05]} Rxa3 {[%emt 0:00:22]} 41. Kf2 {[%emt 0:00:31]} Rb3 {[%emt 0:00:05]} 42. g4 {[%emt 0:00:43]} fxg4 {[%emt 0:00:19]} 43. fxg4 {[%emt 0:00:03]} Kg5 {[%emt 0:00:22]} 0-1

[Event "1st SOA-GM Festival 2024"]
[Site "Bhubaneswar"]
[Date "2024.02.03"]
[Round "9.7"]
[White "Ritviz, Parab"]
[Black "Nguyen Van Huy"]
[Result "1/2-1/2"]
[ECO "B19"]
[WhiteElo "2391"]
[BlackElo "2364"]
[Annotator "ChessBase"]
[PlyCount "129"]
[EventDate "2024.02.01"]
[EventType "swiss"]
[EventCountry "IND"]
[SourceTitle "playchess.com"]
[Source "ChessBase"]
[SourceQuality "1"]
[TimeControl "5400+30"]

1. e4 {[%emt 0:00:34]} c6 {[%emt 0:00:33]} 2. d4 {[%emt 0:00:10]} d5 {[%emt 0:00:20]} 3. Nc3 {[%emt 0:00:19]} dxe4 {[%emt 0:00:25]} 4. Nxe4 {[%emt 0:00:09]} Bf5 {[%emt 0:00:16]} 5. Ng3 {[%emt 0:00:23]} Bg6 {[%emt 0:00:19]} 6. h4 {[%emt 0:00:16]} h6 {[%emt 0:00:19]} 7. Nf3 {[%emt 0:00:13]} e6 {[%emt 0:01:33]} 8. Ne5 {[%emt 0:08:06]} Bh7 {[%emt 0:00:45]} 9. c3 {[%emt 0:04:59]} Nd7 {[%emt 0:03:14]} 10. f4 {[%emt 0:05:40]} Ngf6 {[%emt 0:04:12]} 11. Bd3 {[%emt 0:00:58]} Bxd3 {[%emt 0:01:22]} 12. Qxd3 {[%emt 0:00:31]} Be7 {[%emt 0:04:56]} 13. h5 {[%emt 0:12:17]} O-O {[%emt 0:04:44]} 14. Be3 {[%emt 0:04:46]} c5 {[%emt 0:03:40]} 15. O-O-O {[%emt 0:07:20]} Qc7 {[%emt 0:11:28]} 16. Ne4 {[%emt 0:51:49]} Rad8 {[%emt 0:09:25]} 17. Nxf6+ {[%emt 0:00:00]} Nxf6 {[%emt 0:05:42]} 18. Qe2 {[%emt 0:00:00]} Nd5 {[%emt 0:04:27]} 19. dxc5 {[%emt 0:00:00]} Bxc5 {[%emt 0:05:22]} 20. Bxc5 {[%emt 0:00:00]} Qxc5 {[%emt 0:00:06]} 21. g3 {[%emt 0:00:00]} b5 {[%emt 0:03:08]} 22. Kb1 {[%emt 0:00:00]} b4 {[%emt 0:10:48]} 23. c4 {[%emt 0:00:00]} Nb6 {[%emt 0:01:03]} 24. Rxd8 {[%emt 0:00:00]} Rxd8 {[%emt 0:00:04]} 25. Rd1 {[%emt 0:00:46]} Re8 {[%emt 0:04:53]} 26. b3 {[%emt 0:01:12]} f6 {[%emt 0:02:00]} 27. Nd3 {[%emt 0:00:07]} Qe7 {[%emt 0:00:28]} 28. Qe4 {[%emt 0:00:50]} Rd8 {[%emt 0:02:06]} 29. Re1 {[%emt 0:01:29]} a5 {[%emt 0:01:37]} 30. Kc2 {[%emt 0:00:43]} Kf7 {[%emt 0:00:26]} 31. Qc6 {[%emt 0:01:24]} Qd7 {[%emt 0:02:43]} 32. Qxd7+ {[%emt 0:00:37]} Nxd7 {[%emt 0:00:09]} 33. Rd1 {[%emt 0:00:39]} Ke7 {[%emt 0:00:15]} 34. a3 {[%emt 0:00:20]} bxa3 {[%emt 0:01:56]} 35. Ra1 {[%emt 0:00:02]} Nb8 {[%emt 0:00:17]} 36. Rxa3 {[%emt 0:00:17]} Nc6 {[%emt 0:00:05]} 37. Kc3 {[%emt 0:00:06]} e5 {[%emt 0:00:30]} 38. fxe5 {[%emt 0:01:50]} fxe5 {[%emt 0:00:04]} 39. Ra1 {[%emt 0:00:35]} Rf8 {[%emt 0:00:24]} 40. Kd2 {[%emt 0:00:30]} Rf3 {[%emt 0:00:34]} 41. Re1 {[%emt 0:00:15]} Kd6 {[%emt 0:01:14]} 42. Re3 {[%emt 0:00:20]} Rf1 {[%emt 0:00:30]} 43. Kc3 {[%emt 0:00:42]} Rh1 {[%emt 0:01:54]} 44. g4 {[%emt 0:00:44]} Rg1 {[%emt 0:00:52]} 45. Nf2 {[%emt 0:00:29]} Rg2 {[%emt 0:00:28]} 46. Ne4+ {[%emt 0:00:25]} Ke6 {[%emt 0:00:24]} 47. Rg3 {[%emt 0:00:35]} Re2 {[%emt 0:00:47]} 48. Kd3 {[%emt 0:00:20]} Re1 {[%emt 0:01:48]} 49. Nc5+ {[%emt 0:00:31]} Kd6 {[%emt 0:00:24]} 50. Ne4+ {[%emt 0:00:06]} Ke7 {[%emt 0:10:31]} 51. Re3 {[%emt 0:00:33]} Rg1 {[%emt 0:00:00]} 52. Rg3 {[%emt 0:01:00]} Rd1+ {[%emt 0:00:00]} 53. Ke2 {[%emt 0:00:15]} Rb1 {[%emt 0:00:00]} 54. Nd2 {[%emt 0:00:37]} Rh1 {[%emt 0:00:00]} 55. Nf3 {[%emt 0:00:30]} Kd6 {[%emt 0:00:00]} 56. Kd3 {[%emt 0:00:37]} Kc5 {[%emt 0:00:00]} 57. Ke4 {[%emt 0:00:01]} Kd6 {[%emt 0:00:00]} 58. Rg2 {[%emt 0:00:36]} Ke6 {[%emt 0:00:00]} 59. Rd2 {[%emt 0:00:09]} Rc1 {[%emt 0:00:00]} 60. Rd5 {[%emt 0:00:43]} Rc2 {[%emt 0:00:55]} 61. Rc5 {[%emt 0:01:01]} Kd6 {[%emt 0:00:23]} 62. Rd5+ {[%emt 0:00:02]} Ke6 {[%emt 0:00:04]} 63. Rc5 {[%emt 0:00:59]} Kd6 {[%emt 0:00:01]} 64. Rd5+ {[%emt 0:00:02]} Ke6 {[%emt 0:00:07]} 65. Rxe5+ 1/2-1/2

[Event "1st SOA-GM Festival 2024"]
[Site "Bhubaneswar"]
[Date "2024.02.03"]
[Round "9.8"]
[White "Subhayan Kundu"]
[Black "Rajesh, V A V"]
[Result "1-0"]
[ECO "C75"]
[WhiteElo "2385"]
[BlackElo "2331"]
[Annotator "ChessBase"]
[PlyCount "97"]
[EventDate "2024.02.01"]
[EventType "swiss"]
[EventCountry "IND"]
[SourceTitle "playchess.com"]
[Source "ChessBase"]
[SourceQuality "1"]
[TimeControl "5400+30"]

1. e4 {[%emt 0:00:03]} e5 {[%emt 0:00:14]} 2. Nf3 {[%emt 0:00:36]} Nc6 {[%emt 0:00:10]} 3. Bb5 {[%emt 0:00:45]} a6 {[%emt 0:00:26]} 4. Ba4 {[%emt 0:00:06]} Nge7 {[%emt 0:00:30]} 5. c3 {[%emt 0:01:34]} d6 {[%emt 0:00:29]} 6. O-O {[%emt 0:03:23]} Ng6 {[%emt 0:00:17]} 7. d4 {[%emt 0:00:59]} Bd7 {[%emt 0:00:08]} 8. d5 {[%emt 0:07:26]} Nb8 {[%emt 0:00:26]} 9. c4 {[%emt 0:00:11]} Be7 {[%emt 0:00:35]} 10. Nc3 {[%emt 0:00:09]} O-O {[%emt 0:00:27]} 11. Bxd7 {[%emt 0:00:40]} Qxd7 {[%emt 0:02:04]} 12. Be3 {[%emt 0:07:38]} a5 {[%emt 0:06:33]} 13. Ne1 {[%emt 0:07:08]} f5 {[%emt 0:01:26]} 14. f3 {[%emt 0:01:16]} Na6 {[%emt 0:08:18]} 15. Nd3 {[%emt 0:07:13]} f4 {[%emt 0:19:49]} 16. Bf2 {[%emt 0:00:22]} Nc5 {[%emt 0:02:37]} 17. Nb5 {[%emt 0:11:33]} Rfd8 {[%emt 0:07:53]} 18. b3 {[%emt 0:02:27]} Ra6 {[%emt 0:01:52]} 19. Kh1 {[%emt 0:02:53]} Kh8 {[%emt 0:00:47]} 20. Qc2 {[%emt 0:00:39]} Rda8 {[%emt 0:04:35]} 21. Rfd1 {[%emt 0:02:35]} Nxd3 {[%emt 0:01:59]} 22. Qxd3 {[%emt 0:00:21]} b6 {[%emt 0:00:06]} 23. a3 {[%emt 0:00:54]} Bh4 {[%emt 0:03:41]} 24. Bg1 {[%emt 0:03:23]} Nf8 {[%emt 0:06:53]} 25. Qf1 {[%emt 0:01:32]} Be7 {[%emt 0:04:50]} 26. b4 {[%emt 0:04:52]} Qc8 {[%emt 0:00:45]} 27. Rac1 {[%emt 0:03:23]} Nd7 {[%emt 0:00:07]} 28. Ra1 {[%emt 0:03:10]} Bf8 {[%emt 0:06:20]} 29. Bf2 {[%emt 0:02:46]} Be7 {[%emt 0:00:07]} 30. Qe1 {[%emt 0:01:46]} Qd8 {[%emt 0:04:58]} 31. Qc3 {[%emt 0:02:26]} Qc8 {[%emt 0:00:17]} 32. Qb2 {[%emt 0:00:15]} Bf8 {[%emt 0:02:41]} 33. g3 {[%emt 0:02:51]} fxg3 {[%emt 0:00:24]} 34. hxg3 {[%emt 0:00:04]} c5 {[%emt 0:04:26]} 35. dxc6 {[%emt 0:02:52]} Qxc6 {[%emt 0:00:06]} 36. Nxd6 {[%emt 0:05:30]} axb4 {[%emt 0:01:41]} 37. Qxb4 {[%emt 0:00:24]} Ra5 {[%emt 0:01:24]} 38. Qd2 {[%emt 0:02:28]} Nf6 {[%emt 0:00:19]} 39. Kg2 {[%emt 0:03:16]} Kg8 {[%emt 0:01:34]} 40. c5 {[%emt 0:00:17]} Rxa3 {[%emt 0:01:39]} 41. Rxa3 {[%emt 0:00:13]} Rxa3 {[%emt 0:00:05]} 42. Qb4 {[%emt 0:03:34]} Qa4 {[%emt 0:01:39]} 43. Qxa4 {[%emt 0:00:04]} Rxa4 {[%emt 0:00:04]} 44. c6 {[%emt 0:00:07]} Bxd6 {[%emt 0:03:42]} 45. Rxd6 {[%emt 0:00:05]} Rc4 {[%emt 0:00:15]} 46. Bxb6 {[%emt 0:00:12]} Kf7 {[%emt 0:03:52]} 47. c7 {[%emt 0:00:11]} Ne8 {[%emt 0:00:00]} 48. Rd8 {[%emt 0:00:03]} Nxc7 {[%emt 0:01:00]} 49. Rd7+ {[%emt 0:00:04]} 1-0

[Event "1st SOA-GM Festival 2024"]
[Site "Bhubaneswar"]
[Date "2024.02.03"]
[Round "9.9"]
[White "Sammed Jaykumar, Shete"]
[Black "Nilssen, Ellen Fredericia"]
[Result "1-0"]
[ECO "B90"]
[WhiteElo "2441"]
[BlackElo "2184"]
[Annotator "RC"]
[PlyCount "83"]
[EventDate "2024.02.01"]
[EventType "swiss"]
[EventCountry "IND"]
[SourceTitle "playchess.com"]
[Source "ChessBase"]
[SourceQuality "1"]
[TimeControl "5400+30"]

1. e4 {[%emt 0:00:02]} c5 {[%emt 0:00:07]} 2. Nf3 {[%emt 0:00:16]} d6 {[%emt 0:00:07]} 3. d4 {[%emt 0:00:11]} cxd4 {[%emt 0:00:05]} 4. Nxd4 {[%emt 0:00:03]} Nf6 {[%emt 0:00:10]} 5. Nc3 {[%emt 0:00:04]} a6 {[%emt 0:00:09]} 6. Nb3 {[%emt 0:02:01]} e6 {[%emt 0:02:32]} 7. g4 {[%emt 0:00:07]} b5 {[%emt 0:03:30]} 8. a3 {[%emt 0:06:09]} Bb7 {[%emt 0:03:38]} 9. Bg2 {[%emt 0:00:11]} Be7 {[%emt 0:00:46]} 10. g5 {[%emt 0:06:44]} Nfd7 {[%emt 0:00:12]} 11. h4 {[%emt 0:00:04]} Nc5 {[%emt 0:01:45]} 12. Nd4 {[%emt 0:05:15]} Nbd7 {[%emt 0:05:44]} 13. f4 {[%emt 0:00:57]} h6 {[%emt 0:16:56]} 14. b4 {[%emt 0:33:14]} Na4 {[%emt 0:00:13]} 15. Nxa4 {[%emt 0:00:10]} bxa4 {[%emt 0:00:09]} 16. O-O {[%emt 0:00:10]} hxg5 {[%emt 0:02:29]} 17. hxg5 {[%emt 0:00:18]} g6 {[%emt 0:04:56]} 18. Bb2 {[%emt 0:13:53]} e5 {[%emt 0:04:49]} 19. Ne2 {[%emt 0:03:10]} Qb6+ {[%emt 0:03:48]} 20. Rf2 {[%emt 0:00:07]} Rh7 {[%emt 0:00:11]} 21. Nc3 {[%emt 0:02:03]} exf4 {[%emt 0:09:47]} 22. Nd5 {[%emt 0:00:23]} Bxd5 {[%emt 0:00:35]} 23. Qxd5 {[%emt 0:01:59]} Rc8 {[%emt 0:00:10]} 24. c4 {[%emt 0:14:46]} Qe3 {[%emt 0:02:07]} 25. Rd1 f3 {[%emt 0:00:30]} 26. Bxf3 Qxg5+ {[%emt 0:00:30]} 27. Qxg5 Bxg5 {[%emt 0:00:30]} 28. Rc2 Ke7 {[%emt 0:00:30]} 29. c5 dxc5 {[%emt 0:00:30]} 30. Kf1 Rc7 {[%emt 0:00:30]} 31. bxc5 Bf6 {[%emt 0:00:30]} 32. e5 Bxe5 {[%emt 0:00:30]} 33. c6 Bxb2 {[%emt 0:00:30]} 34. cxd7 Rxd7 {[%emt 0:00:30]} 35. Rxd7+ Kxd7 {[%emt 0:00:30]} 36. Rxb2 Rh4 {[%emt 0:00:30]} 37. Rb7+ Kd6 {[%emt 0:00:30]} 38. Rb6+ Kc5 {[%emt 0:00:30]} 39. Rxa6 g5 {[%emt 0:00:30]} 40. Ra5+ Kc4 {[%emt 0:00:30]} 41. Rxa4+ Kb3 {[%emt 0:00:30]} 42. Bd1+ 1-0

[Event "1st SOA-GM Festival 2024"]
[Site "Bhubaneswar"]
[Date "2024.02.03"]
[Round "9.10"]
[White "Roy Chowdhury, Saptarshi"]
[Black "Tologon tegin, Semetei"]
[Result "0-1"]
[ECO "B51"]
[WhiteElo "2233"]
[BlackElo "2384"]
[Annotator "RC"]
[PlyCount "68"]
[EventDate "2024.02.01"]
[EventType "swiss"]
[EventCountry "IND"]
[SourceTitle "playchess.com"]
[Source "ChessBase"]
[SourceQuality "1"]
[TimeControl "5400+30"]

1. e4 {[%emt 0:01:05]} c5 {[%emt 0:00:15]} 2. Nf3 {[%emt 0:00:06]} Nc6 {[%emt 0:00:10]} 3. Bb5 {[%emt 0:00:12]} d6 {[%emt 0:00:08]} 4. O-O {[%emt 0:00:22]} Bd7 {[%emt 0:00:06]} 5. Re1 {[%emt 0:00:07]} Nf6 {[%emt 0:00:08]} 6. c3 {[%emt 0:00:07]} a6 {[%emt 0:00:05]} 7. Bf1 {[%emt 0:00:18]} Bg4 {[%emt 0:00:08]} 8. h3 {[%emt 0:00:06]} Bxf3 {[%emt 0:00:09]} 9. Qxf3 {[%emt 0:00:06]} e6 {[%emt 0:00:04]} 10. d3 {[%emt 0:01:10]} Be7 {[%emt 0:00:08]} 11. Nd2 {[%emt 0:00:15]} O-O {[%emt 0:00:14]} 12. Qd1 {[%emt 0:00:33]} d5 {[%emt 0:01:32]} 13. e5 {[%emt 0:09:08]} Nd7 {[%emt 0:00:18]} 14. Nf3 {[%emt 0:00:05]} b5 {[%emt 0:00:36]} 15. Bf4 {[%emt 0:05:59]} Re8 {[%emt 0:11:28]} 16. c4 {[%emt 0:07:28]} Nf8 {[%emt 0:02:46]} 17. b3 {[%emt 0:03:23]} Ng6 {[%emt 0:01:20]} 18. Bg3 {[%emt 0:02:49]} Rb8 {[%emt 0:03:15]} 19. Rc1 {[%emt 0:02:46]} Rb7 {[%emt 0:04:33]} 20. cxb5 {[%emt 0:07:54]} axb5 {[%emt 0:00:13]} 21. d4 {[%emt 0:00:04]} c4 {[%emt 0:00:08]} 22. a4 {[%emt 0:00:03]} Na5 {[%emt 0:00:08]} 23. bxc4 {[%emt 0:12:31]} bxc4 {[%emt 0:01:10]} 24. Ra1 {[%emt 0:00:22]} Nb3 {[%emt 0:06:31]} 25. Ra2 {[%emt 0:00:02]} h5 {[%emt 0:03:26]} 26. h4 {[%emt 0:05:22]} Nxh4 {[%emt 0:02:43]} 27. Bxh4 {[%emt 0:00:08]} Bxh4 {[%emt 0:00:04]} 28. a5 {[%emt 0:00:03]} Be7 {[%emt 0:06:34]} 29. a6 {[%emt 0:00:05]} Rb5 {[%emt 0:00:12]} 30. Re3 {[%emt 0:00:08]} Qb6 {[%emt 0:00:54]} 31. Rb2 {[%emt 0:03:44]} g6 {[%emt 0:01:47]} 32. Kh1 {[%emt 0:00:56]} Ra8 {[%emt 0:00:43]} 33. Ra2 {[%emt 0:02:48]} Kg7 {[%emt 0:16:59]} 34. Rb2 {[%emt 0:09:13]} Nxd4 {[%emt 0:03:53]} 0-1

[Event "1st SOA-GM Festival 2024"]
[Site "Bhubaneswar"]
[Date "2024.02.03"]
[Round "9.11"]
[White "Aquino, Jethro Dino"]
[Black "Gonzales, Jayson"]
[Result "1-0"]
[ECO "C10"]
[WhiteElo "2166"]
[BlackElo "2367"]
[Annotator "ChessBase"]
[PlyCount "90"]
[EventDate "2024.02.01"]
[EventType "swiss"]
[EventCountry "IND"]
[SourceTitle "playchess.com"]
[Source "ChessBase"]
[SourceQuality "1"]
[TimeControl "5400+30"]

1. e4 {[%emt 0:00:10]} e6 {[%emt 0:00:24]} 2. d4 {[%emt 0:00:23]} d5 {[%emt 0:00:17]} 3. Nd2 {[%emt 0:00:24]} dxe4 {[%emt 0:00:59]} 4. Nxe4 {[%emt 0:00:16]} Bd7 {[%emt 0:00:39]} 5. Nf3 {[%emt 0:01:20]} Bc6 {[%emt 0:00:17]} 6. Bd3 {[%emt 0:00:22]} Nd7 {[%emt 0:00:38]} 7. O-O {[%emt 0:01:56]} Ngf6 {[%emt 0:00:42]} 8. Ned2 {[%emt 0:01:21]} Be7 {[%emt 0:01:03]} 9. c4 {[%emt 0:01:47]} O-O {[%emt 0:01:11]} 10. Qe2 {[%emt 0:02:02]} Re8 {[%emt 0:04:21]} 11. b3 {[%emt 0:04:19]} b6 {[%emt 0:15:10]} 12. Bb2 {[%emt 0:00:27]} Qc8 {[%emt 0:05:59]} 13. a3 {[%emt 0:04:35]} Qb7 {[%emt 0:03:33]} 14. b4 {[%emt 0:01:11]} a6 {[%emt 0:00:07]} 15. g3 {[%emt 0:09:54]} Rad8 {[%emt 0:06:30]} 16. Rfc1 {[%emt 0:10:14]} Qa7 {[%emt 0:12:07]} 17. c5 {[%emt 0:05:50]} b5 {[%emt 0:01:08]} 18. a4 {[%emt 0:00:06]} Qb7 {[%emt 0:03:03]} 19. Ne1 {[%emt 0:04:58]} Nd5 {[%emt 0:06:18]} 20. Nb3 {[%emt 0:03:37]} Qc8 {[%emt 0:16:21]} 21. Nc2 {[%emt 0:08:46]} Bf6 {[%emt 0:06:46]} 22. Na5 {[%emt 0:10:18]} Ba8 {[%emt 0:00:23]} 23. axb5 {[%emt 0:00:06]} e5 {[%emt 0:01:25]} 24. Bf5 {[%emt 0:09:09]} exd4 {[%emt 0:00:18]} 25. Qg4 {[%emt 0:01:35]} Ne7 {[%emt 0:02:14]} 26. c6 {[%emt 0:04:43]} Nxf5 {[%emt 0:01:04]} 27. Qxf5 {[%emt 0:00:04]} Ne5 {[%emt 0:00:22]} 28. Qxc8 {[%emt 0:00:07]} Rxc8 {[%emt 0:00:15]} 29. bxa6 {[%emt 0:04:47]} Rcd8 {[%emt 0:03:22]} 30. Rd1 {[%emt 0:05:25]} d3 {[%emt 0:00:59]} 31. Nd4 {[%emt 0:00:11]} Rxd4 {[%emt 0:02:41]} 32. Bxd4 {[%emt 0:00:05]} Nf3+ {[%emt 0:00:02]} 33. Kg2 {[%emt 0:00:20]} Nxd4 {[%emt 0:00:16]} 34. Rac1 {[%emt 0:00:04]} Nc2 {[%emt 0:05:26]} 35. b5 {[%emt 0:00:41]} Na3 {[%emt 0:00:22]} 36. b6 {[%emt 0:00:40]} cxb6 {[%emt 0:00:04]} 37. Nb7 {[%emt 0:00:03]} Nc2 {[%emt 0:01:07]} 38. Rxd3 {[%emt 0:01:56]} Nb4 {[%emt 0:00:02]} 39. Rd7 {[%emt 0:02:12]} Nxa6 {[%emt 0:00:15]} 40. Nd6 {[%emt 0:00:39]} Rf8 {[%emt 0:00:08]} 41. Ra7 {[%emt 0:02:04]} Nc5 {[%emt 0:01:50]} 42. Rxa8 {[%emt 0:00:07]} Rxa8 {[%emt 0:00:19]} 43. c7 {[%emt 0:00:04]} Be5 {[%emt 0:01:01]} 44. c8=Q+ {[%emt 0:03:12]} Rxc8 {[%emt 0:00:09]} 45. Nxc8 {[%emt 0:00:00]} g6 {[%emt 0:01:23]} 1-0